Workbook

Sheet CONSECUTIVO
B1: Nº | C1: RECIBIDO DE: | D1: VALOR | E1: FORMA DE PAGO | F1: POR CONCEPTO DE: 1/5 | G1: POR CONCEPTO DE: 2/5 | H1: POR CONCEPTO DE: 3/5 | I1: POR CONCEPTO DE: 4/5 | J1: POR CONCEPTO DE: 5/5
B2: 1 | C2: JAVIER FONCECA DIAZ | D2: $ 15,000,000 | E2: EFECTIVO | G2: ABONO VENTA CENTRO DE MECANIZADO LEADWELL REFERENCIA V20i (Nº SERIE L2TJI0269)
B3: 2 | C3: POLICROMETAL | D3: $ 950,000 | E3: EFECTIVO | G3: 1 MECANIZADO EN ACERO SEGÚN ESPECIFICACION DE PLANOS. ($600.000)
B4: 3 | C4: MAURICIO LEADWELL | D4: $ 15,000,000 | E4: EFECTIVO | G4: ABONO VENTA CENTRO DE MECANIZADO LEADWELL REFERENCIA V20i (Nº SERIE L2TJI0269)
B5: 4 | C5: LEIDY JHOJANNA BORJA LEAL | D5: $ 110,000,000 | E5: EFECTIVO | G5: SALDO VENTA CENTRO DE MECANIZADO LEADWELL REFERENCIA V20i (Nº SERIE L2TJI0269)
B6: 5 | C6: JOHN FERNEY GUTIERREZ LARA | D6: $ 8,000,000 | E6: EFECTIVO | G6: ABONO MOLDES MICHELIN
B7: 6 | C7: CLAUDIA GUERRERO | D7: $ 40,000 | E7: EFECTIVO | G7: ARREGLO CONTROLADORA DE VISORES ($30.000) | H7: VENTA BUS DE DATOS PUERTO SERIE (DB9) PARA BOARD ($10.000)
B8: 7 | C8: JASON ALEXANDER SALAZAR | D8: $ 150,000 | E8: Eefectivo | G8: ABONO MECANIZADO DE 10 PIEZAS IGUALES SEGÚN PLANO POR VALOR DE $25.000 C/U | H8: PARA UN TOTAL DE $250.000 | I8: SALDO DE $100.000
B9: 8 | C9: JAVIER FONCECA DIAZ | D9: $ 5,000,000 | E9: EFECTIVO | G9: PAGO DOBLADORA PBB 1270/2A PAN & BOX BRAKE | H9: SERIAL No: A14030797 DATE: 2014 03
B10: 9 | D10: $ 945,000 | E10: CRUCE DE CUENTAS | G10: PAGO VOUCHER´S CARGADOS A LA CUENTA 48551 (SALITRE). SEGÚN CUENTA DE COBRO 002. $375.000 | H10: PAGO 3 PLANTAS GSM TARIFADORAS CON VISOR $570.000
B11: 10 | D11: $ 200,000 | E11: EFECTIVO | F11: PAGO VOUCHER´S CARGADOS A LA CUENTA 90669. | G11: 1481622771 USADO 2016-05-04 12:32 ($200.000ºº)
B12: 11 | D12: $ 200,000 | E12: EFECTIVO | F12: PAGO VOUCHER´S CARGADOS A LA CUENTA 09291. | G12: 0503828231 USADO 04/05/2016 04:12:00 p.m. ($200.000ºº)
B13: 12 | D13: $ 300,000 | E13: EFECTIVO | F13: PAGO VOUCHER´S CARGADOS A LA CUENTA 90669. | G13: 1890346254 USADO 2016-09-05 09:30 ($300.000ºº)
B14: 13 | D14: $ 480,000 | E14: EFECTIVO | G14: 2 PLANTAS GSM TARIFADORA S/N: 0610172, 0610173. VISOR S/N: 0620172, 0620173 $400.000 | H14: 2 TELEFONO PANASONIC KX-TS500 S/N; 0DBKC038755, 0DBKC036600. $80.000
B15: 14 | D15: $ 200,000 | E15: EFECTIVO | F15: PAGO VOUCHER´S CARGADOS A LA CUENTA 90669. | G15: 8768949932 USADO 14/10/2016 09:46:00 a.m. ($200.000ºº)
B16: 15 | D16: $ 200,000 | E16: EFECTIVO | F16: PAGO VOUCHER´S CARGADOS A LA CUENTA 90669. | G16: 2124707471 USADO 2016-11-08 09:11 ($200.000ºº)
B17: 16 | D17: $ 35,000 | E17: EFECTIVO | F17: ENVIO DE 777 SMS, $45 C/U.
B18: 17 | D18: $ 33,500 | E18: EFECTIVO | F18: ENVIO DE 745 SMS, $45 C/U.
B19: 18 | D19: $ 40,000 | E19: EFECTIVO | G19: PROGRAMACION MICROCONTROLADOR Y PLANTA, PLANTA GSM TARIFADORA S/N: 0610064 $25 | H19: CAMBIO PULSADOR PLANTA GSM TARIFADORA S/N: 0610134 $15
B20: 19
B21: 20
B22: 21
B23: 22
B24: 23
B25: 24
B26: 25
B27: 26
B28: 27
B29: 28
B30: 29
B31: 30
B32: 31
B33: 32
B34: 33
B35: 34
B36: 35 | D36: $ 1,000,000 | E36: EFECTIVO | F36: PAGO VOUCHER´S CARGADOS A LA CUENTA 90669. | G36: 0502342605 USADO 31/03/2014 08:26:00 a.m. ($500.000ºº) | H36: 8964029679 USADO 07/04/2014 01:00:00 p.m. ($500.000ºº)
B37: 36 | D37: $ 1,000,000 | E37: EFECTIVO | F37: PAGO VOUCHER´S CARGADOS A LA CUENTA 90669. | G37: 3435821913 USADO 14/04/2014 08:28:00 a.m. ($500.000ºº) | H37: 4595042319 USADO 24/04/2014 08:33:00 a.m. ($500.000ºº)
B38: 37 | D38: $ 180,000 | E38: EFECTIVO | F38: LINKSYS WRTP-54G S/N CJJ11GA00775
B39: 38 | D39: $ 375,000 | E39: CRUCE DE CUENTAS | F39: PAGO VOUCHER´S CARGADOS A LA CUENTA 48551 (SALITRE). | G39: 4393279200 USADO 06/07/2015 11:05:00 a.m. | H39: SEGÚN CUENTA DE COBRO 019.
B40: 39 | D40: $ 215,865 | E40: CRUCE DE CUENTAS | F40: UTILIDAD PUNTO SALITRE, JULIO DE 2015. | G40: SE HIZO LA REVISION DE LA CONTABILIDAD PUNTO SALITRE DEL MES DE JULIO, | H40: DE FORMA SATISFACTORIA POR PARTE DE IPCOL.
B41: 40 | D41: $ 600,000 | E41: CRUCE DE CUENTAS | F41: ARRIENDO OFICINA 201 UBICADA EN LA CARRERA 16 Nº 61-23, BOGOTA D.C. | G41: MES: JULIO 2015.
B42: 41 | D42: $ 356 | E42: CRUCE DE CUENTAS | F42: SALDO PENDIENTE, CRUCE DE CUENTAS DELAERCOM - IPCOL DEL MES JUNIO 2015.
B43: 42 | D43: $ 375,000 | E43: CRUCE DE CUENTAS | F43: PAGO VOUCHER´S CARGADOS A LA CUENTA 48551 (SALITRE). | G43: 6484682405 USADO 08/08/2015 12:36:00 p.m. | H43: SEGÚN CUENTA DE COBRO 021.
B44: 43 | D44: $ 699,525 | E44: CRUCE DE CUENTAS | F44: UTILIDAD PUNTO SALITRE, AGOSTO DE 2015. | G44: SE HIZO LA REVISION DE LA CONTABILIDAD PUNTO SALITRE DEL MES DE AGOSTO, | H44: DE FORMA SATISFACTORIA POR PARTE DE IPCOL.
B45: 44 | D45: $ 600,000 | E45: CRUCE DE CUENTAS | F45: ARRIENDO OFICINA 201 UBICADA EN LA CARRERA 16 Nº 61-23, BOGOTA D.C. | G45: MES: AGOSTO 2015.
B46: 45 | D46: $ 15,771,261 | E46: CRUCE DE CUENTAS | F46: SALDO PENDIENTE, CRUCE DE CUENTAS DELAERCOM - IPCOL DEL MES JULIO 2015.
B47: 46 | D47: $ 1,850 | E47: EFECTIVO | F47: SALDO CRUCE DE CUENTAS IPCOL - DEALERCOM AGOSTO 2015.
B48: 47 | D48: $ 130,000 | E48: EFECTIVO | F48: LINKSYS WRTP 54G S/N: CJJ11GA00008
B49: 48
B50: 49
B51: 50
B52: 51
B53: 52
B54: 53
B55: 54
B56: 55
B57: 56
B58: 57
B59: 58
B60: 59
B61: 60
B62: 61
B63: 62
B64: 63
B65: 64
B66: 65
B67: 66
B68: 67
B69: 68
B70: 69
B71: 70
B72: 71
B73: 72
B74: 73
B75: 74
B76: 75
B77: 76
B78: 77
B79: 78
B80: 79
B81: 80
B82: 81
B83: 82
B84: 83
B85: 84
B86: 85
B87: 86
B88: 87
B89: 88
B90: 89
B91: 90
B92: 91
B93: 92
B94: 93
B95: 94
B96: 95
B97: 96
B98: 97
B99: 98
B100: 99
B101: 100
B102: 101
B103: 102
B104: 103
B105: 104
B106: 105
B107: 106
B108: 107
B109: 108
B110: 109
B111: 110
B112: 111
B113: 112
B114: 113
B115: 114 | C115: DIEGO RODRIGUEZ | D115: $ 100,000 | E115: EFECTIVO | F115: PAGO VOUCHER´S CARGADOS A LA CUENTA 03541. | G115: 1765339230 USADO 04/10/2013 10:00:00 a.m. ($100.000ºº)
B116: 115 | C116: DIANA ALFONSO | D116: $ 200,000 | E116: EFECTIVO | F116: LINKSYS WRTP-54G S/N CJJ11GB00211 ($150.000) | G116: INSTALACION Y CONFIGURACION SIPTAR CALLSHOP Y LINKSYS ($50.000)
B117: 116 | C117: DEALERCOM LTDA. | D117: $ 144,600 | E117: CRUCE DE CUENTAS | G117: Aportes obligatorios al sistema de seguridad social integral mediante la planilla integrada de | H117: liquidacion de aportes en el periodo diciembre 2013 - enero 2014. (Luisa F. Rodriguez C.). | I117: SEGÚN CUENTA DE COBRO 064 del 2013.
B118: 117 | C118: DEALERCOM LTDA. | D118: $ 719,562 | E118: CRUCE DE CUENTAS | F118: UTILIDAD PUNTO SALITRE, NOVIEMBRE DE 2013. | G118: SE HIZO LA REVISION DE LA CONTABILIDAD PUNTO SALITRE DEL MES DE NOVIEMBRE, | H118: DE FORMA SATISFACTORIA POR PARTE DE IPCOL.
B119: 118 | C119: DEALERCOM LTDA. | D119: $ 600,000 | E119: CRUCE DE CUENTAS | F119: ARRIENDO OFICINA 201 UBICADA EN LA CARRERA 16 Nº 61-23, BOGOTA D.C. | G119: MES: NOVIEMBRE 2013.
B120: 119 | C120: DEALERCOM LTDA. | D120: $ 375,000 | E120: CRUCE DE CUENTAS | F120: PAGO VOUCHER´S CARGADOS A LA CUENTA 48551 (SALITRE). | G120: 5445276480 USADO 18/12/2013 08:57:00 a.m. | H120: SEGÚN CUENTA DE COBRO 065.
B121: 120 | C121: DEALERCOM LTDA. | D121: $ 37,500 | E121: CRUCE DE CUENTAS | F121: PAGO VOUCHER´S CARGADOS A LA CUENTA 12610 (JORGE RUIZ). | G121: 4221209112 USADO 19/12/2013 02:03:00 p.m. | H121: SEGÚN CUENTA DE COBRO 066.
B122: 121 | C122: DEALERCOM LTDA. | D122: $ 66,550 | E122: EFECTIVO | F122: SALDO CRUCE DE CUENTAS DEALERCOM - IPCOL DICIEMBRE DE 2013
B123: 122 | C123: DIEGO RODRIGUEZ | D123: $ 200,000 | E123: EFECTIVO | F123: PAGO VOUCHER´S CARGADOS A LA CUENTA 03541. | G123: 5993447700 USADO 01/11/2013 03:55:00 p.m. ($100.000ºº) | H123: 2241494119 USADO 15/11/2013 08:39:00 a.m. ($100.000ºº)
B124: 123 | C124: WILMER VALERO | D124: $ 2,000 | E124: EFECTIVO | F124: RECARGA CELULAR 3204228410 HECHA POR PUNTORED, 30/01/2014
B125: 124 | C125: MILLER SAAVEDRA | D125: $ 1,489,120 | E125: EFECTIVO | F125: PAGO SMS ENVIADOS: 18614 SMS A $80 | G125: ADJUNTO RELACION DE FECHAS Y CANTIDAD.
B126: 125 | C126: MILLER SAAVEDRA | D126: $ 1,500,000 | E126: EFECTIVO | F126: PAGO VOUCHER´S CARGADOS A LA CUENTA 90669. | G126: 4895785196 USADO 25/10/2013 09:46:00 a.m. ($500.000ºº) | H126: 4610084451 USADO 30/10/2013 12:54:00 p.m. ($500.000ºº) | I126: 4496439185 USADO 07/11/2013 02:20:00 p.m. ($500.000ºº)
B127: 126 | C127: WILMER VALERO | D127: $ 10,000 | E127: EFECTIVO | F127: RECARGA CELULAR 3105719964 HECHA POR PUNTORED
B128: 127 | C128: DIEGO RODRIGUEZ | D128: $ 200,000 | E128: EFECTIVO | F128: PAGO VOUCHER´S CARGADOS A LA CUENTA 03541. | G128: 2852787104 USADO 02/12/2013 05:41:00 p.m. ($100.000ºº) | H128: 3096802714 USADO 18/12/2013 03:18:00 p.m. ($100.000ºº)
B129: 128 | C129: DEALERCOM LTDA. | D129: $ 386,580 | E129: CRUCE DE CUENTAS | G129: Aportes obligatorios al sistema de seguridad social integral mediante la planilla integrada de | H129: liquidacion de aportes en el periodo noviembre 2013 - enero 2014. (Cesar Augusto Baron Jimenez). | I129: SEGÚN CUENTA DE COBRO 002, 003, y 004.
B130: 129 | C130: DEALERCOM LTDA. | D130: $ 151,096 | E130: CRUCE DE CUENTAS | G130: Aportes obligatorios al sistema de seguridad social integral mediante la planilla integrada de | H130: liquidacion de aportes en el periodo enero 2014. (Luisa F. Rodriguez C.). | I130: SEGÚN CUENTA DE COBRO 005.
B131: 130 | C131: DEALERCOM LTDA. | D131: $ 375,000 | E131: CRUCE DE CUENTAS | F131: PAGO VOUCHER´S CARGADOS A LA CUENTA 48551 (SALITRE). | G131: 9719129726 USADO 11/01/2014 09:10:00 a.m. | H131: SEGÚN CUENTA DE COBRO 006.
B132: 131 | C132: DEALERCOM LTDA. | D132: $ 32,000 | E132: CRUCE DE CUENTAS | F132: PAGO INSUMOS LABORATORIO. | G132: SEGÚN CUENTA DE COBRO 008.
B133: 132 | C133: DEALERCOM LTDA. | D133: $ 150,000 | E133: CRUCE DE CUENTAS | F133: PAGO DINERO EN PRESTAMO. | G133: SEGÚN CUENTA DE COBRO 009.
B134: 133 | C134: DEALERCOM LTDA. | D134: $ 1,517,857 | E134: CRUCE DE CUENTAS | F134: UTILIDAD PUNTO SALITRE, DICIEMBRE DE 2013. | G134: SE HIZO LA REVISION DE LA CONTABILIDAD PUNTO SALITRE DEL MES DE DICIEMBRE, | H134: DE FORMA SATISFACTORIA POR PARTE DE IPCOL.
B135: 134 | C135: DEALERCOM LTDA. | D135: $ 600,000 | E135: CRUCE DE CUENTAS | F135: ARRIENDO OFICINA 201 UBICADA EN LA CARRERA 16 Nº 61-23, BOGOTA D.C. | G135: MES: DICIEMBRE 2013.
B136: 135 | C136: DEALERCOM LTDA. | D136: $ 9,450 | E136: EFECTIVO | F136: SALDO CRUCE DE CUENTAS DEALERCOM - IPCOL ENERO DE 2014
B137: 136 | C137: DEALERCOM LTDA. | D137: $ 151,096 | E137: CRUCE DE CUENTAS | G137: Aportes obligatorios al sistema de seguridad social integral mediante la planilla integrada de | H137: liquidacion de aportes en el periodo febrero 2014. (Cesar Augusto Baron Jimenez). | I137: SEGÚN CUENTA DE COBRO 010.
B138: 137 | C138: DEALERCOM LTDA. | D138: $ 151,096 | E138: CRUCE DE CUENTAS | G138: Aportes obligatorios al sistema de seguridad social integral mediante la planilla integrada de | H138: liquidacion de aportes en el periodo febrero 2014. (Luisa F. Rodriguez C.). | I138: SEGÚN CUENTA DE COBRO 011.
B139: 138 | C139: DEALERCOM LTDA. | D139: $ 375,000 | E139: CRUCE DE CUENTAS | F139: PAGO VOUCHER´S CARGADOS A LA CUENTA 48551 (SALITRE). | G139: 0181647516 USADO 11/02/2014 11:34:00 a.m. | H139: SEGÚN CUENTA DE COBRO 012.
B140: 139 | C140: DEALERCOM LTDA. | D140: $ 47,463 | E140: CRUCE DE CUENTAS | F140: UTILIDAD PUNTO SALITRE, ENERO DE 2014. | G140: SE HIZO LA REVISION DE LA CONTABILIDAD PUNTO SALITRE DEL MES DE ENERO, | H140: DE FORMA SATISFACTORIA POR PARTE DE IPCOL.
B141: 140 | C141: DEALERCOM LTDA. | D141: $ 1,046,374 | E141: CRUCE DE CUENTAS | F141: UTILIDAD PUNTO SALITRE, FEBRERO DE 2014. | G141: SE HIZO LA REVISION DE LA CONTABILIDAD PUNTO SALITRE DEL MES DE FEBRERO, | H141: DE FORMA SATISFACTORIA POR PARTE DE IPCOL.
B142: 141 | C142: DEALERCOM LTDA. | D142: $ 600,000 | E142: CRUCE DE CUENTAS | F142: ARRIENDO OFICINA 201 UBICADA EN LA CARRERA 16 Nº 61-23, BOGOTA D.C. | G142: MES: ENERO 2014.
B143: 142 | C143: DEALERCOM LTDA. | D143: $ 600,000 | E143: CRUCE DE CUENTAS | F143: ARRIENDO OFICINA 201 UBICADA EN LA CARRERA 16 Nº 61-23, BOGOTA D.C. | G143: MES: FEBRERO 2014.
B144: 143 | C144: DEALERCOM LTDA. | D144: $ 17,650 | E144: EFECTIVO | F144: SALDO CRUCE DE CUENTAS DEALERCOM - IPCOL FEBRERO DE 2014
B145: 144 | C145: EDNA HERNANDEZ | D145: $ 25,000 | E145: EFECTIVO | F145: PAGO ANTENA MAGNETICA PARA PLANTA GSM TARIFADORA REF. 6000T | G145: EL PRODUCTO HA SIDO ENTREGADO A SATISFACCION DEL CLIENTE.
B146: 145 | C146: ADRIANA CUELLAR | D146: $ 807,000 | E146: EFECTIVO | F146: Cancelacion de gastos compartidos del hogar MARZO DE 2014. | G146: Anexo: Tabla especificando gastos.
B147: 146 | C147: MILLER SAAVEDRA | D147: $ 2,000,000 | E147: EFECTIVO | F147: PAGO VOUCHER´S CARGADOS A LA CUENTA 90669. | G147: 4406779784 USADO 15/11/2013 08:16:00 a.m. ($500.000ºº) | H147: 8509319895 USADO 21/11/2013 08:38:00 a.m. ($500.000ºº) | I147: 6535882199 USADO 27/11/2013 02:39:00 p.m. ($500.000ºº) | J147: 6311946924 USADO 05/12/2013 08:11:00 a.m. ($500.000ºº)
B148: 147 | C148: DEALERCOM LTDA. | D148: $ 151,096 | E148: CRUCE DE CUENTAS | G148: Aportes obligatorios al sistema de seguridad social integral mediante la planilla integrada de | H148: liquidacion de aportes en el periodo marzo 2014. (Cesar Augusto Baron Jimenez). | I148: SEGÚN CUENTA DE COBRO 014.
B149: 148 | C149: DEALERCOM LTDA. | D149: $ 151,096 | E149: CRUCE DE CUENTAS | G149: Aportes obligatorios al sistema de seguridad social integral mediante la planilla integrada de | H149: liquidacion de aportes en el periodo marzo 2014. (Luisa F. Rodriguez C.). | I149: SEGÚN CUENTA DE COBRO 015.
B150: 149 | C150: DEALERCOM LTDA. | D150: $ 375,000 | E150: CRUCE DE CUENTAS | F150: PAGO VOUCHER´S CARGADOS A LA CUENTA 48551 (SALITRE). | G150: 9504526601 USADO 10/03/2014 09:30:00 a.m. | H150: SEGÚN CUENTA DE COBRO 016.
B151: 150 | C151: DEALERCOM LTDA. | D151: $ 1,190,355 | E151: CRUCE DE CUENTAS | F151: UTILIDAD PUNTO SALITRE, MARZO DE 2014. | G151: SE HIZO LA REVISION DE LA CONTABILIDAD PUNTO SALITRE DEL MES DE MARZO, | H151: DE FORMA SATISFACTORIA POR PARTE DE IPCOL.
B152: 151 | C152: DEALERCOM LTDA. | D152: $ 600,000 | E152: CRUCE DE CUENTAS | F152: ARRIENDO OFICINA 201 UBICADA EN LA CARRERA 16 Nº 61-23, BOGOTA D.C. | G152: MES: MARZO 2014.
B153: 152 | C153: ADRIANA CUELLAR | D153: $ 771,500 | E153: EFECTIVO | F153: Cancelacion de gastos compartidos del hogar ABRIL DE 2014. | G153: Anexo: Tabla especificando gastos.
B154: 153 | C154: DEALERCOM LTDA. | D154: $ 151,096 | E154: CRUCE DE CUENTAS | G154: Aportes obligatorios al sistema de seguridad social integral mediante la planilla integrada de | H154: liquidacion de aportes en el periodo abril 2014. (Cesar Augusto Baron Jimenez). | I154: SEGÚN CUENTA DE COBRO 019.
B155: 154 | C155: DEALERCOM LTDA. | D155: $ 151,096 | E155: CRUCE DE CUENTAS | G155: Aportes obligatorios al sistema de seguridad social integral mediante la planilla integrada de | H155: liquidacion de aportes en el periodo abril 2014. (Luisa F. Rodriguez C.). | I155: SEGÚN CUENTA DE COBRO 020.
B156: 155 | C156: DEALERCOM LTDA. | D156: $ 750,000 | E156: CRUCE DE CUENTAS | F156: PAGO VOUCHER´S CARGADOS A LA CUENTA 48551 (SALITRE). | G156: 2134542408 USADO 01/04/2014 10:04:00 a.m.; 2804246501 USADO 29/04/2014 02:27:00 p.m. | H156: SEGÚN CUENTA DE COBRO 021.
B157: 156 | C157: DEALERCOM LTDA. | D157: $ 555,585 | E157: CRUCE DE CUENTAS | F157: UTILIDAD PUNTO SALITRE, ABRIL DE 2014. | G157: SE HIZO LA REVISION DE LA CONTABILIDAD PUNTO SALITRE DEL MES DE ABRIL, | H157: DE FORMA SATISFACTORIA POR PARTE DE IPCOL.
B158: 157 | C158: DEALERCOM LTDA. | D158: $ 600,000 | E158: CRUCE DE CUENTAS | F158: ARRIENDO OFICINA 201 UBICADA EN LA CARRERA 16 Nº 61-23, BOGOTA D.C. | G158: MES: ABRIL 2014.
B159: 158 | C159: MILLER SAAVEDRA | D159: $ 2,000,000 | E159: EFECTIVO | F159: PAGO VOUCHER´S CARGADOS A LA CUENTA 90669. | G159: 6312398586 USADO 13/12/2013 09:09:00 a.m. ($500.000ºº) | H159: 3565988359 USADO 23/12/2013 08:32:00 a.m. ($500.000ºº) | I159: 8866767549 USADO 13/01/2014 12:46:00 p.m. ($500.000ºº) | J159: 2101990422 USADO 22/01/2014 09:44:00 a.m. ($500.000ºº)
B160: 159 | C160: DEALERCOM LTDA. | D160: $ 983,950 | E160: EFECTIVO | G160: SALDO EN EFECTIVO PAGO DE FACTURAS 1348, 1365, 1366, 1367, 1368, 1369, 1379, 1380, 1381, | H160: 1390, 1391, 1392, 1393, Y 1394.
B161: 160 | C161: ADRIANA CUELLAR | D161: $ 1,000,000 | E161: EFECTIVO | F161: Cancelacion de gastos compartidos del hogar MAYO DE 2014. | G161: Anexo: Tabla especificando gastos. | H161: SALDO PENDIENTE $664.400
B162: 161 | C162: DIEGO RODRIGUEZ | D162: $ 100,000 | E162: EFECTIVO | F162: PAGO VOUCHER´S CARGADOS A LA CUENTA 03541. | G162: 275955053 USADO 27/01/2014 02:22:00 p.m. ($100.000ºº)
B163: 162 | C163: ANDREY GERONIMO AVELLA PEREZ | D163: $ 22,650 | E163: EFECTIVO | G163: CONSUMOS A CELULAR, REALIZADOS EN LA LINEA 7004325 MOVISTAR, FACTURA MAYO 2014.
B164: 163 | C164: DEALERCOM LTDA. | D164: $ 151,096 | E164: CRUCE DE CUENTAS | G164: Aportes obligatorios al sistema de seguridad social integral mediante la planilla integrada de | H164: liquidacion de aportes en el periodo mayo 2014. (Cesar Augusto Baron Jimenez). | I164: SEGÚN CUENTA DE COBRO 024.
B165: 164 | C165: DEALERCOM LTDA. | D165: $ 151,096 | E165: CRUCE DE CUENTAS | G165: Aportes obligatorios al sistema de seguridad social integral mediante la planilla integrada de | H165: liquidacion de aportes en el periodo mayo 2014. (Luisa F. Rodriguez C.). | I165: SEGÚN CUENTA DE COBRO 025.
B166: 165 | C166: DEALERCOM LTDA. | D166: $ 312,166 | E166: CRUCE DE CUENTAS | F166: UTILIDAD PUNTO SALITRE, MAYO DE 2014. | G166: SE HIZO LA REVISION DE LA CONTABILIDAD PUNTO SALITRE DEL MES DE MAYO, | H166: DE FORMA SATISFACTORIA POR PARTE DE IPCOL.
B167: 166 | C167: DEALERCOM LTDA. | D167: $ 600,000 | E167: CRUCE DE CUENTAS | F167: ARRIENDO OFICINA 201 UBICADA EN LA CARRERA 16 Nº 61-23, BOGOTA D.C. | G167: MES: MAYO 2014.
B168: 167 | C168: VICTOR HUGO SANABRIA PIÑA | D168: $ 520,000 | E168: EFECTIVO | F168: 2 PLACAS DE ABANDONO PARA POZOS. MEDIDAS: 59cm x 59cm, ESPESOR 4mm.
B169: 168 | C169: ANDREY GERONIMO AVELLA PEREZ | D169: $ 550,000 | E169: EFECTIVO | G169: PAGO DINERO PRESTADO POR EDUARDO GROSSO, QUEDA LA CUENTA SALDADA, Y A PAZ Y SALVO.
B170: 169 | C170: CARLOS RIGUEROS | D170: $ 200,000 | E170: EFECTIVO | F170: PAGO CARGA REALIZADA EL DIA 2014-07-21 14:11:05
B171: 170 | C171: CESAR CIFUENTES DIAZ | D171: $ 600,000 | E171: TRANSFERENCIA | F171: PAGO GATEWAY GOIP4 S/N GOIP4PM10081361
B172: 171 | C172: DEALERCOM LTDA. | D172: $ 151,096 | E172: CRUCE DE CUENTAS | G172: Aportes obligatorios al sistema de seguridad social integral mediante la planilla integrada de | H172: liquidacion de aportes en el periodo junio 2014. (Cesar Augusto Baron Jimenez). | I172: SEGÚN CUENTA DE COBRO 026.
B173: 172 | C173: DEALERCOM LTDA. | D173: $ 151,096 | E173: CRUCE DE CUENTAS | G173: Aportes obligatorios al sistema de seguridad social integral mediante la planilla integrada de | H173: liquidacion de aportes en el periodo junio 2014. (Luisa F. Rodriguez C.). | I173: SEGÚN CUENTA DE COBRO 027.
B174: 173 | C174: DEALERCOM LTDA. | D174: $ 375,000 | E174: CRUCE DE CUENTAS | F174: PAGO VOUCHER´S CARGADOS A LA CUENTA 48551 (SALITRE). | G174: 1307662395 USADO 09/06/2014 08:30:00 a.m. | H174: SEGÚN CUENTA DE COBRO 029.
B175: 174 | C175: DEALERCOM LTDA. | D175: $ 1,031,650 | E175: CRUCE DE CUENTAS | F175: UTILIDAD PUNTO SALITRE, JUNIO DE 2014. | G175: SE HIZO LA REVISION DE LA CONTABILIDAD PUNTO SALITRE DEL MES DE JUNIO, | H175: DE FORMA SATISFACTORIA POR PARTE DE IPCOL.
B176: 175 | C176: DEALERCOM LTDA. | D176: $ 600,000 | E176: CRUCE DE CUENTAS | F176: ARRIENDO OFICINA 201 UBICADA EN LA CARRERA 16 Nº 61-23, BOGOTA D.C. | G176: MES: JUNIO 2014.
B177: 176 | C177: PHONET | D177: $ 45,000 | E177: EFECTIVO | F177: PAGO ADAPTADOR PARA PLANTA GSM.
B178: 177 | C178: MILLER SAAVEDRA | D178: $ 2,000,000 | E178: EFECTIVO | F178: PAGO VOUCHER´S CARGADOS A LA CUENTA 90669. | G178: 8752510061 USADO 03/02/2014 03:42:00 p.m. ($500.000ºº) | H178: 9795357869 USADO 10/02/2014 04:22:00 p.m. ($500.000ºº) | I178: 5372891269 USADO 17/02/2014 08:13:00 a.m. ($500.000ºº) | J178: 1084741331 USADO 22/02/2014 08:40:00 a.m. ($500.000ºº)
B179: 178 | C179: MILLER SAAVEDRA | D179: $ 500,000 | E179: EFECTIVO | F179: PAGO VOUCHER´S CARGADOS A LA CUENTA 90669. | G179: 6467893672 USADO 27/02/2014 09:00:00 a.m. ($500.000ºº)
B180: 179 | C180: MILLER SAAVEDRA | D180: $ 497,800 | E180: EFECTIVO | F180: PAGO IVR Y SMS ENVIADOS: | G180: 985 IVR A $90 = $88.650, y 5.114 SMS A $80 = $409.120 | H180: ADJUNTO RELACION DE FECHAS Y CANTIDAD.
B181: 180 | C181: DEALERCOM LTDA. | D181: $ 151,096 | E181: CRUCE DE CUENTAS | G181: Aportes obligatorios al sistema de seguridad social integral mediante la planilla integrada de | H181: liquidacion de aportes en el periodo julio 2014. (Cesar Augusto Baron Jimenez). | I181: SEGÚN CUENTA DE COBRO 030.
B182: 181 | C182: DEALERCOM LTDA. | D182: $ 151,096 | E182: CRUCE DE CUENTAS | G182: Aportes obligatorios al sistema de seguridad social integral mediante la planilla integrada de | H182: liquidacion de aportes en el periodo julio 2014. (Luisa F. Rodriguez C.). | I182: SEGÚN CUENTA DE COBRO 031.
B183: 182 | C183: DEALERCOM LTDA. | D183: $ 375,000 | E183: CRUCE DE CUENTAS | F183: PAGO VOUCHER´S CARGADOS A LA CUENTA 48551 (SALITRE). | G183: 4135029096 USADO 14/07/2014 09:00:00 a.m. | H183: SEGÚN CUENTA DE COBRO 032.
B184: 183 | C184: DEALERCOM LTDA. | D184: $ 37,500 | E184: CRUCE DE CUENTAS | F184: PAGO VOUCHER´S CARGADOS A LA CUENTA 12610 (JORGE RUIZ). | G184: 0536998920 USADO 28/07/2014 03:22:00 p.m. | H184: SEGÚN CUENTA DE COBRO 032.
B185: 184 | C185: DEALERCOM LTDA. | D185: $ 980,784 | E185: CRUCE DE CUENTAS | F185: UTILIDAD PUNTO SALITRE, JULIO DE 2014. | G185: SE HIZO LA REVISION DE LA CONTABILIDAD PUNTO SALITRE DEL MES DE JULIO, | H185: DE FORMA SATISFACTORIA POR PARTE DE IPCOL.
B186: 185 | C186: DEALERCOM LTDA. | D186: $ 600,000 | E186: CRUCE DE CUENTAS | F186: ARRIENDO OFICINA 201 UBICADA EN LA CARRERA 16 Nº 61-23, BOGOTA D.C. | G186: MES: JULIO 2014.
B187: 186 | C187: DEALERCOM LTDA. | D187: $ 1,250 | E187: EFECTIVO | F187: SALDO CRUCE DE CUENTAS IPCOL - DEALERCOM JULIO 2014.
B188: 187 | C188: DEALERCOM LTDA. | D188: $ 160,336 | E188: CRUCE DE CUENTAS | G188: Aportes obligatorios al sistema de seguridad social integral mediante la planilla integrada de | H188: liquidacion de aportes en el periodo agosto 2014. (Cesar Augusto Baron Jimenez). | I188: SEGÚN CUENTA DE COBRO 035.
B189: 188 | C189: DEALERCOM LTDA. | D189: $ 151,096 | E189: CRUCE DE CUENTAS | G189: Aportes obligatorios al sistema de seguridad social integral mediante la planilla integrada de | H189: liquidacion de aportes en el periodo agosto 2014. (Luisa F. Rodriguez C.). | I189: SEGÚN CUENTA DE COBRO 036.
B190: 189 | C190: DEALERCOM LTDA. | D190: $ 375,000 | E190: CRUCE DE CUENTAS | F190: PAGO VOUCHER´S CARGADOS A LA CUENTA 48551 (SALITRE). | G190: 5762863761 USADO 04/08/2014 10:11:00 a.m. | H190: SEGÚN CUENTA DE COBRO 037.
B191: 190 | C191: DEALERCOM LTDA. | D191: $ 861,215 | E191: CRUCE DE CUENTAS | F191: UTILIDAD PUNTO SALITRE, AGOSTO DE 2014. | G191: SE HIZO LA REVISION DE LA CONTABILIDAD PUNTO SALITRE DEL MES DE AGOSTO, | H191: DE FORMA SATISFACTORIA POR PARTE DE IPCOL.
B192: 191 | C192: DEALERCOM LTDA. | D192: $ 600,000 | E192: CRUCE DE CUENTAS | F192: ARRIENDO OFICINA 201 UBICADA EN LA CARRERA 16 Nº 61-23, BOGOTA D.C. | G192: MES: AGOSTO 2014.
B193: 192 | C193: DEALERCOM LTDA. | D193: $ 800 | E193: EFECTIVO | F193: SALDO CRUCE DE CUENTAS IPCOL - DEALERCOM AGOSTO 2014.
B194: 193 | C194: ADRIANA CUELLAR | D194: $ 172,350 | E194: EFECTIVO | F194: Cancelacion de gastos compartidos del hogar SEPTIEMBRE DE 2014. | G194: Anexo: Tabla especificando gastos.
B195: 194 | C195: DIEGO RODRIGUEZ | D195: $ 100,000 | E195: EFECTIVO | F195: PAGO VOUCHER´S CARGADOS A LA CUENTA 03541. | G195: 275955053 USADO 17/02/2014 04:48:00 p.m. ($100.000ºº)
B196: 195 | C196: DEALERCOM LTDA. | D196: $ 151,096 | E196: CRUCE DE CUENTAS | G196: Aportes obligatorios al sistema de seguridad social integral mediante la planilla integrada de | H196: liquidacion de aportes en el periodo septiembre 2014. (Luisa F. Rodriguez C.). | I196: SEGÚN CUENTA DE COBRO 042.
B197: 196 | C197: DEALERCOM LTDA. | D197: $ 750,000 | E197: CRUCE DE CUENTAS | F197: PAGO VOUCHER´S CARGADOS A LA CUENTA 48551 (SALITRE). | G197: 6331078674 USADO 03/09/2014 10:25:00 a.m. | H197: 9430934608 USADO 27/09/2014 11:07:00 a.m. | I197: SEGÚN CUENTA DE COBRO 043.
B198: 197 | C198: DEALERCOM LTDA. | D198: $ 787,710 | E198: CRUCE DE CUENTAS | F198: UTILIDAD PUNTO SALITRE, SEPTIEMBRE DE 2014. | G198: SE HIZO LA REVISION DE LA CONTABILIDAD PUNTO SALITRE DEL MES DE SEPTIEMBRE, | H198: DE FORMA SATISFACTORIA POR PARTE DE IPCOL.
B199: 198 | C199: DEALERCOM LTDA. | D199: $ 600,000 | E199: CRUCE DE CUENTAS | F199: ARRIENDO OFICINA 201 UBICADA EN LA CARRERA 16 Nº 61-23, BOGOTA D.C. | G199: MES: SEPTIEMBRE 2014.
B200: 199 | C200: DEALERCOM LTDA. | D200: $ 2,550 | E200: EFECTIVO | F200: SALDO CRUCE DE CUENTAS IPCOL - DEALERCOM SEPTIEMBRE 2014.
... 19 more rows

Sheet DATOS
B1: NOMBRE | C1: DIRECCION | D1: TELEFONO | E1: C.C. | F1: NIT. | G1: Nº C.C. ó NIT.
B2: ADRIANA CUELLAR | C2: CARRERA 16 Nº 61-23 | D2: 5476324 | E2: X | G2: 51,984,374
B3: ALEXANDER RODRIGUEZ | C3: CRA 24 Nº 61D-15 | D3: 3015259997 | E3: X | G3: 11,323,591
B4: ALFONSO MILLAN | C4: AV. 19 Nº 136-38 | D4: 2585424 | E4: X | G4: 19,139,315
B5: ANA MARIA OVALLE | C5: CARRERA 1G ESTE Nº 76B-27 SUR | D5: 3,108,009,344 | E5: X
B6: ANDREY GERONIMO AVELLA PEREZ | C6: CALLE 39 SUR Nº 31A-47 | D6: 7004325 | E6: X | G6: 1,057,587,219
B7: CARL0S ZAMBRANO | C7: CALLE 3 # 3-61 | D7: 3103468454 | E7: X | G7: 79,325,373
B8: CARLOS RIGUEROS | D8: 3106803329 | E8: X | G8: 79,556,310
B9: CARMELA ROMERO | C9: CRA. 14 N 147-70 L. 53 | D9: 3124466282 - 6260912
B10: CESAR CIFUENTES DIAZ | C10: CALLE 49 Nº 16-04 BUCARAMANGA | D10: 3204272712 | E10: X | G10: 1,128,449,636
B11: CLAUDIA PAY | C11: CENTRO
B12: DEALERCOM LTDA. | C12: CARRERA 16 Nº 61-23 | D12: 3474237 | F12: X | G12: 830.104.838-3
B13: DIANA ALFONSO | C13: CARRERA 59A Nº 135-95 LOCAL 2 | D13: 4744499
B14: DIEGO RODRIGUEZ | C14: CALLE 57 Nº 13-74 | D14: 8050400 | E14: X | G14: 79,380,941
B15: EDNA HERNANDEZ | C15: CALLE 57 Nº 23-50 | D15: 3208608313 | E15: X | G15: 65,746,344
B16: EVARISTO ROMERO | C16: AV. CALLE 13 Nº 90-89 | D16: 2678757
B17: FERNANDO SIERRA | C17: DIAGONAL 61B Nº 18-41 | D17: 3112004536 | E17: X | G17: 79,471,596
B18: FRANKY RAMIREZ | C18: CALLE 59 BIS Nº 76-62 SUR | D18: 3133901465 | E18: X | G18: 80,720,705
B19: GABRIEL REYES | D19: 3103468464
B20: GIOVANNY AVILA | C20: CALLE 65A Nº 17-71 | D20: 8003777 | E20: X | G20: 79,797,514
B21: HERNAN RODRIGUEZ | C21: AV. CALLE 19 Nº 20-76 APTO. 422 | D21: 3143305562 - 3093764 | E21: X | G21: 7,306,340
B22: JAIME PEREZ | C22: TV 28B Nº 36-53 | D22: 7450950 | F22: X | G22: 900.536.751-9
B23: LEONEL DIAZ | E23: X | G23: 19,430,912
B24: LUZ DARY CAMACHO | C24: CARRERA 17 A Nº 12-25 SOACHA | D24: 5766866 - 3143226443 | E24: X | G24: 39,544,811
B25: MARILUZ TORRES | C25: CRA 87 Nº 51B-74 SUR | D25: 7833252 - 3115543491 | E25: X | G25: 52,173,075
B26: MILLER SAAVEDRA | C26: CALLE 17 Nº 8-49 OF. 611 | D26: 4805050
B27: OSMAN MARTINEZ | D27: 3102556281
B28: PAY PHONE
B29: PEDRO VARGAS | C29: CRA 24 Nº 22C-08 | D29: 3118871175 | E29: X | G29: 93,419,176
B30: PHONET | C30: TRANSVERSAL 24 Nº 61B-16 | D30: 2178535
B31: PUNZONAR LTDA. | C31: CALLE 71 # 74A - 51 | D31: 2230697 | F31: X | G31: 830.133.512-1
B32: VICTOR HUGO SANABRIA PIÑA | C32: CALLE 45 Nº 51-14 | D32: 3214493320 | E32: X | G32: 93,383,932
B33: WILLIAM ROMERO | C33: CLLE. 65 CON 80 SUR BOSA | D33: 3158754759
B34: YESID PEREA | C34: QUIBDO CHOCO | D34: 3216456494 | E34: X | G34: 11,799,581
B35: YINNA CRUZ | C35: CARRERA 7 CON 71 | D35: 310319118
B36: OSCAR MARMOLEJO | D36: 3105849118 | G36: 79,153,777
B37: ANGEL VALOYES M | D37: 3214640337
B38: CARLOS AGUDELO | D38: 3128055844 | E38: X | G38: 1,052,393,812
B39: ALEGRIA BALSECA | D39: (593) 987863250 | E39: X | G39: 1,705,164,794
B40: POLICROMETAL | C40: CARRERA 68A # 36A-77 SUR INT. 2 | D40: 5631631
B41: CESAR HERRERA | C41: CALLE 47A # 29-17 | D41: 3125701916 | E41: X | G41: 79,726,937
B42: CLAUDIA GUERRERO | C42: CARRERA 64B #55A-47 SUR | D42: 3125822873 | E42: X | G42: 51,854,507
B43: JASON ALEXANDER SALAZAR | C43: CARRERA 24 #41B-33 SUR | D43: 3184763126 | E43: X | G43: 1,013,595,731
B44: CARLOS SARMIENTO | C44: CALLE 7 A SUR # 2 - 57 | D44: 3178764059 | E44: X | G44: 80,068,604
B45: JAVIER FONCECA DIAZ | C45: CALLE 18 # 15-06 | D45: 3105665046 | E45: X | G45: 1,094,885,127
B46: MAURICIO CASTRO | C46: CALLE 71C # 91A-20 | D46: 3044494275 | E46: X | G46: 80,034,633
B47: LEIDY JHOJANNA BORJA LEAL | C47: CALLE 79D Bis # 110 – 20 | D47: 3044494275 | E47: X | G47: 1,120,354,231
B48: JOHN FERNEY GUTIERREZ LARA | C48: CALLE 2 # 38B 43 | D48: 3124482140 | E48: X | G48: 74,184,896

Sheet RECIBO (2)
D1: RECIBO DE CAJA
D2: Nº | I2: 001
A4: FECHA: | B4: =NOW() -> 2023-06-29T10:37:05.130 | I4: =VLOOKUP(I2,CONSECUTIVO!$B$2:$H$200,3,FALSE) -> $ 15,000,000
A5: RECIBIDO DE: | B5: =VLOOKUP(I2,CONSECUTIVO!$B$2:$H$200,2,FALSE) -> JAVIER FONCECA DIAZ
A6: ="DIRECCION: "&VLOOKUP(B5,DATOS!$B$2:$G$100,2,FALSE) -> DIRECCION: CALLE 18 # 15-06 | D6: C.C. | E6: =""&VLOOKUP(B5,DATOS!$B$2:$F$100,4,FALSE) -> X | F6: NIT. | G6: =""&VLOOKUP(B5,DATOS!$B$2:$F$100,5,FALSE) ->  | I6: =VLOOKUP(B5,DATOS!$B$2:$G$100,6,FALSE) -> 1,094,885,127
A7: FORMA DE PAGO: | C7: =""&VLOOKUP(I2,CONSECUTIVO!$B$2:$H$200,4,FALSE) -> EFECTIVO | D7: ="TEL. "&VLOOKUP(B5,DATOS!$B$2:$G$100,3,FALSE) -> TEL. 3105665046
A10: =PesosCO(I4) -> LA SUMA DE: QUINCE MILLONES PESOS M/CTE.
A13: ="POR CONCEPTO DE: "&VLOOKUP(I2,CONSECUTIVO!$B$2:$H$200,5,FALSE) -> POR CONCEPTO DE:
A15: =""&VLOOKUP(I2,CONSECUTIVO!$B$2:$H$200,6,FALSE) -> ABONO VENTA CENTRO DE MECANIZADO LEADWELL REFERENCIA V20i (Nº SERIE L2TJI0269)
A16: =""&VLOOKUP(I2,CONSECUTIVO!$B$2:$H$200,7,FALSE) -> 
A17: =""&VLOOKUP(I2,CONSECUTIVO!$B$2:$I$200,8,FALSE) -> 
A18: =""&VLOOKUP(I2,CONSECUTIVO!$B$2:$J$200,9,FALSE) -> 
A19: DINERO ENTREGADO POR: | D19: FIRMA Y SELLO DE RECIBIDO:
A22: __________________ | D22: ______________________
A23: NIT. o C.C.
A26: Calle 39 SUR Nº 31A-47 Barrio Ingles Bogotá D.C. Colombia. Tel: 7004325
A27: pagina web: metaltronicos.com

Sheet RECIBO
D1: RECIBO DE CAJA
D2: Nº | I2: 005
A4: FECHA: | B4: =NOW() -> 2023-06-29T10:37:05.130 | I4: =VLOOKUP(I2,CONSECUTIVO!$B$2:$H$200,3,FALSE) -> $ 8,000,000
A5: RECIBIDO DE: | B5: =VLOOKUP(I2,CONSECUTIVO!$B$2:$H$200,2,FALSE) -> JOHN FERNEY GUTIERREZ LARA
A6: ="DIRECCION: "&VLOOKUP(B5,DATOS!$B$2:$G$100,2,FALSE) -> DIRECCION: CALLE 2 # 38B 43 | D6: C.C. | E6: =""&VLOOKUP(B5,DATOS!$B$2:$F$100,4,FALSE) -> X | F6: NIT. | G6: =""&VLOOKUP(B5,DATOS!$B$2:$F$100,5,FALSE) ->  | I6: =VLOOKUP(B5,DATOS!$B$2:$G$100,6,FALSE) -> 74,184,896
A7: FORMA DE PAGO: | C7: =""&VLOOKUP(I2,CONSECUTIVO!$B$2:$H$200,4,FALSE) -> EFECTIVO | D7: ="TEL. "&VLOOKUP(B5,DATOS!$B$2:$G$100,3,FALSE) -> TEL. 3124482140
A10: =PesosCO(I4) -> LA SUMA DE: OCHO MILLONES PESOS M/CTE.
A13: ="POR CONCEPTO DE: "&VLOOKUP(I2,CONSECUTIVO!$B$2:$H$200,5,FALSE) -> POR CONCEPTO DE:
A15: =""&VLOOKUP(I2,CONSECUTIVO!$B$2:$H$200,6,FALSE) -> ABONO MOLDES MICHELIN
A16: =""&VLOOKUP(I2,CONSECUTIVO!$B$2:$H$200,7,FALSE) -> 
A17: =""&VLOOKUP(I2,CONSECUTIVO!$B$2:$I$200,8,FALSE) -> 
A18: =""&VLOOKUP(I2,CONSECUTIVO!$B$2:$J$200,9,FALSE) -> 
A19: DINERO ENTREGADO POR: | D19: FIRMA Y SELLO DE RECIBIDO:
A22: __________________ | D22: ______________________
A23: NIT. o C.C.
A26: Calle 39 SUR Nº 31A-47 Barrio Ingles Bogotá D.C. Colombia. Tel: (601) 7004325
A27: pagina web: metaltronicos.com e-mail: metaltronicos@metaltronicos.com

Sheet ADJUNTO MILLER
B3: ADJUNTO RECIBO DE CAJA Nº 066
B5: 2014-03-22 | C5: 448 | D5: IVR | E5: =C5*90 -> $ 40,320
B6: 2014-04-07 | C6: 192 | D6: IVR | E6: $ 17,280
B7: 2014-06-09 | C7: 177 | D7: IVR | E7: $ 15,930
B8: 2014-06-10 | C8: 168 | D8: IVR | E8: $ 15,120
B9: TOTAL IVR | C9: =SUM(C5:C8) -> 985 | D9: IVR | E9: =SUM(E5:E8) -> $ 88,650
B11: 2013-12-10 | C11: 503 | D11: SMS | E11: =C11*80 -> $ 40,240
B12: 2013-12-11 | C12: 82 | D12: SMS | E12: $ 6,560
B13: 2013-12-12 | C13: 136 | D13: SMS | E13: $ 10,880
B14: 2013-12-13 | C14: 92 | D14: SMS | E14: $ 7,360
B15: 2013-12-16 | C15: 23 | D15: SMS | E15: $ 1,840
B16: 2014-02-07 | C16: 177 | D16: SMS | E16: $ 14,160
B17: 2014-02-14 | C17: 683 | D17: SMS | E17: $ 54,640
B18: 2014-03-10 | C18: 599 | D18: SMS | E18: $ 47,920
B19: 2014-03-12 | C19: 662 | D19: SMS | E19: $ 52,960
B20: 2014-03-15 | C20: 324 | D20: SMS | E20: $ 25,920
B21: 2014-03-19 | C21: 335 | D21: SMS | E21: $ 26,800
B22: 2014-03-20 | C22: 648 | D22: SMS | E22: $ 51,840
B23: 2014-04-07 | C23: 318 | D23: SMS | E23: $ 25,440
B24: 2014-05-06 | C24: 281 | D24: SMS | E24: $ 22,480
B25: 2014-06-09 | C25: 251 | D25: SMS | E25: $ 20,080
B26: TOTAL SMS | C26: =SUM(C11:C25) -> 5114 | D26: SMS | E26: =SUM(E11:E25) -> $ 409,120
B28: TOTAL | E28: =E26+E9 -> $ 497,770
